fUSD/lending_fUSD_20240627
["ID","MTS","AMOUNT","RATE_DAILY","PERIOD"]
[330488224,1719497111362,-1166.43,0.00043835,120]
[330488225,1719497111400,-594.38533283,0.00043835,120]
[330488226,1719497111440,-883.39,0.00043835,120]
[330488227,1719497111478,-1462.85,0.00043835,120]
[330488228,1719497111516,-501.83,0.00043835,120]
[330488229,1719497111554,-900.2,0.00043835,120]
[330488230,1719497111593,-628.37,0.00043835,120]
[330488231,1719497111631,-500.0,0.00043835,120]
[330488232,1719497111672,-684.63,0.00043835,120]
[330488233,1719497111712,-500.0,0.00043835,120]
[330488234,1719497111752,-1119.98,0.00043835,120]
[330488235,1719497111792,-1333.45,0.00043835,120]
[330488236,1719497111831,-500.0,0.00043835,120]
[330488237,1719497111869,-1605.76,0.00043835,120]
[330488238,1719497111908,-2044.0,0.00043835,120]
[330488239,1719497111951,-1770.8,0.00043835,120]
[330488240,1719497111993,-1415.54,0.00043835,120]
[330488241,1719497112035,-654.17,0.00043835,120]
[330488242,1719497112076,-1812.25,0.00043835,120]
[330488243,1719497112116,-856.57,0.00043835,120]
[330488244,1719497112155,-500.0,0.00043835,120]
[330488245,1719497112194,-1363.99,0.00043835,120]
[330488246,1719497112232,-500.0,0.00043835,120]
[330488247,1719497112272,-19441.84,0.00043835,120]
[330488248,1719497112313,-546.52,0.00043835,120]
[330488249,1719497112352,-638.67,0.00043835,120]
[330488250,1719497112390,-500.0,0.00043835,120]
[330488251,1719497112428,-2170.54,0.00043835,120]
[330488252,1719497112469,-699.36,0.00043835,120]
[330488253,1719497112509,-1692.93,0.00043835,120]
[330488254,1719497112546,-1012.43,0.00043835,120]
[330488255,1719497112584,-500.0,0.00043835,120]
[330488256,1719497112622,-957.1,0.00043835,120]
[330488257,1719497112660,-500.0,0.00043835,120]
[330488258,1719497112698,-684.84,0.00043835,120]
[330488259,1719497112738,-1477.52,0.00043835,120]
[330488260,1719497112776,-1185.16,0.00043835,120]
[330488261,1719497112815,-1964.51,0.00043835,120]
[330488262,1719497112851,-2853.4,0.00043835,120]
[330488263,1719497112890,-500.0,0.00043835,120]
[330488264,1719497112927,-651.7,0.00043835,120]
[330488265,1719497112969,-1314.05,0.00043835,120]
[330488266,1719497113009,-1991.76,0.00043835,120]
[330488267,1719497113049,-1046.1,0.00043835,120]
[330488268,1719497113087,-2263.41,0.00043835,120]
[330488269,1719497113126,-2133.84,0.00043835,120]
[330488270,1719497113168,-1786.67,0.00043835,120]
[330488271,1719497113207,-500.0,0.00043835,120]
[330488272,1719497113245,-1355.15,0.00043835,120]
[330488273,1719497113282,-500.0,0.00043835,120]
[330488274,1719497113320,-500.0,0.00043835,120]
[330488275,1719497113358,-1300.35,0.00043835,120]
[330488276,1719497113396,-1009.3,0.00043835,120]
[330488277,1719497113434,-2192.12,0.00043835,120]
[330488278,1719497113475,-523.85,0.00043835,120]
[330488279,1719497113516,-875.48,0.00043835,120]
[330488280,1719497113556,-1038.16,0.00043835,120]
[330488281,1719497113596,-693.05,0.00043835,120]
[330488282,1719497113637,-1746.62,0.00043835,120]
[330488283,1719497113677,-810.43,0.00043835,120]
[330488284,1719497113717,-500.0,0.00043835,120]
[330488285,1719497113763,-1661.97,0.00043835,120]
[330488286,1719497113805,-2739.58,0.00043835,120]
[330488287,1719497113846,-500.0,0.00043835,120]
[330488288,1719497113888,-2739.58,0.00043835,120]
[330488289,1719497113931,-2739.58,0.00043835,120]
[330488290,1719497113974,-2739.58,0.00043835,120]
[330488291,1719497114015,-500.0,0.00043835,120]
[330488292,1719497114059,-1964.15,0.00043835,120]
[330488293,1719497114098,-2739.58,0.00043835,120]
[330488294,1719497114137,-2739.58,0.00043835,120]
[330488295,1719497114178,-2739.58,0.00043835,120]
[330488296,1719497114216,-2396.8,0.00043835,120]
[330488297,1719497114256,-500.0,0.00043835,120]
[330488298,1719497114296,-2739.58,0.00043835,120]
[330488299,1719497114336,-2739.58,0.00043835,120]
[330488300,1719497114374,-1474.09,0.00043835,120]
[330488301,1719497114414,-2739.58,0.00043835,120]
[330488302,1719497114456,-2739.58,0.00043835,120]
[330488303,1719497114494,-500.0,0.00043835,120]
[330488304,1719497114533,-964.13,0.00043835,120]
[330488305,1719497114571,-401.54708537,0.00043835,120]
[330488306,1719497114609,-542.49,0.00043835,120]
[330488307,1719497114647,-500.0,0.00043835,120]
[330488308,1719497114686,-500.0,0.00043835,120]
[330488309,1719497114724,-500.0,0.00043835,120]
[330488310,1719497114767,-1126.1,0.00043835,120]
[330488311,1719497114805,-2397.13,0.00043835,120]
[330488312,1719497114843,-846.48,0.00043835,120]
[330488313,1719497114881,-1161.97,0.00043835,120]
[330488314,1719497114919,-3016.28,0.00043835,120]
[330488315,1719497114964,-500.0,0.00043835,120]
[330488316,1719497115006,-1131.45,0.00043835,120]
[330488317,1719497115046,-1956.58,0.00043835,120]
[330488318,1719497115086,-1956.58,0.00043835,120]
[330488319,1719497115124,-500.0,0.00043835,120]
[330488320,1719497115164,-878.99,0.00043835,120]
[330488321,1719497115206,-2460.63,0.00043835,120]
[330488322,1719497115245,-678.55,0.00043835,120]
[330488323,1719497115283,-1063.16,0.00043835,120]
[330488324,1719497115551,-1455.12,0.00043835,120]
[330488325,1719497115593,-1464.66,0.00043835,120]
[330488326,1719497115632,-551.44,0.00043835,120]
[330488327,1719497115674,-1118.99,0.00043835,120]
[330488328,1719497115718,-935.5,0.00043835,120]
[330488329,1719497115762,-500.0,0.00043835,120]
[330488330,1719497115801,-3145.68,0.00043835,120]
[330488331,1719497115838,-1051.23,0.00043835,120]
[330488332,1719497115875,-887.03,0.00043835,120]
[330488333,1719497115912,-500.0,0.00043835,120]
[330488334,1719497115954,-897.94,0.00043835,120]
[330488335,1719497115992,-1804.08,0.00043835,120]
[330488336,1719497116032,-500.0,0.00043835,120]
[330488337,1719497116071,-500.0,0.00043835,120]
[330488338,1719497116109,-1451.61,0.00043835,120]
[330488339,1719497116148,-1460.77,0.00043835,120]
[330488340,1719497116188,-500.0,0.00043835,120]
[330488341,1719497116227,-633.41,0.00043835,120]
[330488342,1719497116264,-1087.52,0.00043835,120]
[330488343,1719497116303,-632.64,0.00043835,120]
[330488344,1719497116342,-500.0,0.00043835,120]
[330488345,1719497116380,-745.16,0.00043835,120]
[330488346,1719497116417,-500.0,0.00043835,120]
[330488347,1719497116457,-1150.27,0.00043835,120]
[330488348,1719497116502,-500.0,0.00043835,120]
[330488349,1719497116542,-500.0,0.00043835,120]
[330488350,1719497116580,-500.0,0.00043835,120]
[330488351,1719497116620,-879.02,0.00043835,120]
[330488352,1719497116660,-573.61,0.00043835,120]
[330488353,1719497116705,-500.0,0.00043835,120]
[330488354,1719497116748,-181.12879768,0.00043835,120]
[330488355,1719497116794,-1282.54,0.00043835,120]
[330488356,1719497116840,-2799.33,0.00043835,120]
[330488357,1719497116884,-576.73,0.00043835,120]
[330488358,1719497116937,-1679.01,0.00043835,120]
[330488359,1719497116983,-500.0,0.00043835,120]
[330488360,1719497117023,-514.43,0.00043835,120]
[330488361,1719497117066,-1534.52,0.00043835,120]
[330488362,1719497117106,-2380.25,0.00043835,120]
[330488363,1719497117146,-1521.39,0.00043835,120]
[330488364,1719497117185,-599.8,0.00043835,120]
[330488365,1719497117223,-500.0,0.00043835,120]
[330488366,1719497117262,-800.79,0.00043835,120]
[330488367,1719497117300,-500.0,0.00043835,120]
[330488368,1719497117339,-799.03,0.00043835,120]
[330488369,1719497117378,-500.0,0.00043835,120]
[330488370,1719497117418,-2226.87,0.00043835,120]
[330488371,1719497117463,-964.65,0.00043835,120]
[330488372,1719497117505,-500.0,0.00043835,120]
[330488373,1719497117546,-500.0,0.00043835,120]
[330488374,1719497117585,-500.0,0.00043835,120]
[330488375,1719497117624,-500.0,0.00043835,120]
[330488376,1719497117668,-1111.0,0.00043835,120]
[330488377,1719497117711,-500.0,0.00043835,120]
[330488378,1719497117755,-1575.4,0.00043835,120]
[330488379,1719497117796,-577.0,0.00043835,120]
[330488380,1719497117841,-500.0,0.00043835,120]
[330488381,1719497117879,-1369.94,0.00043835,120]
[330488382,1719497117918,-500.0,0.00043835,120]
[330488383,1719497117965,-1187.55,0.00043835,120]
[330488384,1719497118003,-656.81,0.00043835,120]
[330488385,1719497118043,-500.0,0.00043835,120]
[330488386,1719497118083,-1223.86,0.00043835,120]
[330488387,1719497118121,-500.0,0.00043835,120]
[330488388,1719497118160,-628.05,0.00043835,120]
[330488389,1719497118199,-460.46118091,0.00043835,120]
[330488390,1719497118239,-646.81,0.00043835,120]
[330488391,1719497118278,-1015.94,0.00043835,120]
[330488392,1719497118317,-1058.89,0.00043835,120]
[330488393,1719497118357,-500.0,0.00043835,120]
[330488394,1719497118398,-1301.33,0.00043835,120]
[330488395,1719497118436,-283.33210108,0.00043835,120]
[330488396,1719497118476,-1491.13,0.00043835,120]
[330488397,1719497118517,-797.49,0.00043835,120]
[330488398,1719497118558,-241.14,0.00043835,120]
[330488399,1719497118598,-2278.53,0.00043835,120]
[330488400,1719497118639,-698.07,0.00043835,120]
[330488401,1719497118683,-500.0,0.00043835,120]
[330488402,1719497118724,-563.79,0.00043835,120]
[330488403,1719497118767,-500.0,0.00043835,120]
[330488404,1719497118806,-1816.67,0.00043835,120]
[330488405,1719497118846,-913.36,0.00043835,120]
[330488406,1719497118886,-625.91,0.00043835,120]
[330488407,1719497118930,-1447.05,0.00043835,120]
[330488408,1719497118973,-500.0,0.00043835,120]
[330488409,1719497119015,-1972.34,0.00043835,120]
[330488410,1719497119056,-1149.7,0.00043835,120]
[330488411,1719497119097,-771.15,0.00043835,120]
[330488412,1719497119136,-560.77,0.00043835,120]
[330488413,1719497119175,-2213.64,0.00043835,120]
[330488414,1719497119216,-500.0,0.00043835,120]
[330488415,1719497119254,-2081.72,0.00043835,120]
[330488416,1719497119293,-727.3,0.00043835,120]
[330488417,1719497119332,-988.94,0.00043835,120]
[330488418,1719497119370,-1918.05,0.00043835,120]
[330488419,1719497119408,-1584.96,0.00043835,120]
[330488420,1719497119446,-500.0,0.00043835,120]
[330488421,1719497119485,-665.35,0.00043835,120]
[330488422,1719497119524,-500.0,0.00043835,120]
[330488423,1719497119564,-2833.53,0.00043835,120]
[330488424,1719497119602,-1471.69,0.00043835,120]
[330488425,1719497119640,-708.98,0.00043835,120]
[330488426,1719497119681,-2941.06,0.00043835,120]
[330488427,1719497119720,-500.0,0.00043835,120]
[330488428,1719497119990,-611.62,0.00043835,120]
[330488429,1719497120030,-500.0,0.00043835,120]
[330488430,1719497120068,-500.0,0.00043835,120]
[330488431,1719497120108,-500.0,0.00043835,120]
[330488432,1719497120146,-3075.32,0.00043835,120]
[330488433,1719497120185,-1643.58,0.00043835,120]
[330488434,1719497120222,-500.0,0.00043835,120]
[330488435,1719497120262,-2030.67,0.00043835,120]
[330488436,1719497120302,-500.0,0.00043835,120]
[330488437,1719497120341,-500.0,0.00043835,120]
[330488438,1719497120378,-1077.75,0.00043835,120]
[330488439,1719497120415,-500.0,0.00043835,120]
[330488440,1719497120455,-1868.27,0.00043835,120]
[330488441,1719497120493,-1022.95,0.00043835,120]
[330488442,1719497120531,-1413.71,0.00043835,120]
[330488443,1719497120568,-261.6,0.00043835,120]
[330488444,1719497120608,-500.0,0.00043835,120]
[330488445,1719497120648,-1067.78,0.00043835,120]
[330488446,1719497120687,-652.71,0.00043835,120]
[330488447,1719497120724,-1617.44,0.00043835,120]
[330488448,1719497120765,-629.64,0.00043835,120]
[330488449,1719497120802,-500.0,0.00043835,120]
[330488450,1719497120841,-1019.69,0.00043835,120]
[330488451,1719497120880,-605.75,0.00043835,120]
[330488452,1719497120919,-1344.32,0.00043835,120]
[330488453,1719497120961,-3788.91,0.00043835,120]
[330488454,1719497120999,-500.0,0.00043835,120]
[330488455,1719497121038,-500.0,0.00043835,120]
[330488456,1719497121077,-500.0,0.00043835,120]
[330488457,1719497121117,-1300.92,0.00043835,120]
[330488458,1719497121155,-500.0,0.00043835,120]
[330488459,1719497121193,-500.0,0.00043835,120]
[330488460,1719497121231,-500.0,0.00043835,120]
[330488461,1719497121271,-500.0,0.00043835,120]
[330488462,1719497121310,-650.82,0.00043835,120]
[330488463,1719497121349,-1197.65,0.00043835,120]
[330488464,1719497121388,-1808.97,0.00043835,120]
[330488465,1719497121426,-514.05,0.00043835,120]
[330488466,1719497121468,-514.05,0.00043835,120]
[330488467,1719497121505,-514.05,0.00043835,120]
[330488468,1719497121543,-514.05,0.00043835,120]
[330488469,1719497121582,-514.05,0.00043835,120]
[330488470,1719497121619,-514.05,0.00043835,120]
[330488471,1719497121656,-514.05,0.00043835,120]
[330488472,1719497121695,-500.0,0.00043835,120]
[330488473,1719497121737,-514.05,0.00043835,120]
[330488474,1719497121777,-514.05,0.00043835,120]
[330488475,1719497121816,-909.02,0.00043835,120]
[330488476,1719497121854,-514.05,0.00043835,120]
[330488477,1719497121894,-1016.06,0.00043835,120]
[330488478,1719497121933,-500.0,0.00043835,120]
[330488479,1719497121977,-514.05,0.00043835,120]
[330488480,1719497122019,-3436.04,0.00043835,120]
[330488481,1719497122059,-1339.65,0.00043835,120]
[330488482,1719497122098,-500.0,0.00043835,120]
[330488483,1719497122137,-1073.5,0.00043835,120]
[330488484,1719497122175,-500.0,0.00043835,120]
[330488485,1719497122213,-1204.81,0.00043835,120]
[330488486,1719497122250,-500.0,0.00043835,120]
[330488487,1719497122288,-500.0,0.00043835,120]
[330488488,1719497122327,-674.08,0.00043835,120]
[330488489,1719497122369,-1983.55,0.00043835,120]
[330488490,1719497122407,-500.0,0.00043835,120]
[330488491,1719497122445,-571.76,0.00043835,120]
[330488492,1719497122484,-1022.12,0.00043835,120]
[330488493,1719497122523,-500.0,0.00043835,120]
[330488494,1719497122559,-602.24,0.00043835,120]
[330488495,1719497122598,-546.26,0.00043835,120]
[330488496,1719497122636,-730.78,0.00043835,120]
[330488497,1719497122677,-1840.96,0.00043835,120]
[330488498,1719497122714,-1154.3,0.00043835,120]
[330488499,1719497122755,-1018.7,0.00043835,120]
[330488500,1719497122794,-505.31066483,0.00043835,120]
[330488501,1719497122832,-500.0,0.00043835,120]
[330488502,1719497122873,-500.0,0.00043835,120]
[330488503,1719497122911,-1244.97,0.00043835,120]
[330488504,1719497122949,-500.0,0.00043835,120]
[330488505,1719497122987,-683.32,0.00043835,120]
[330488506,1719497123027,-1425.92,0.00043835,120]
[330488507,1719497123064,-500.0,0.00043835,120]
[330488508,1719497123103,-500.0,0.00043835,120]
[330488509,1719497123141,-521.76,0.00043835,120]
[330488510,1719497123181,-2917.68,0.00043835,120]
[330488511,1719497123220,-2035.08,0.00043835,120]
[330488512,1719497123259,-1475.73,0.00043835,120]
[330488513,1719497123297,-2451.95,0.00043835,120]
[330488514,1719497123335,-733.85,0.00043835,120]
[330488515,1719497123373,-1607.34,0.00043835,120]
[330488516,1719497123410,-2066.29,0.00043835,120]
[330488517,1719497123452,-500.0,0.00043835,120]
[330488518,1719497123496,-2303.08,0.00043835,120]
[330488519,1719497123537,-500.0,0.00043835,120]
[330488520,1719497123579,-1448.08,0.00043835,120]
[330488521,1719497123619,-924.61,0.00043835,120]
[330488522,1719497123659,-1189.87,0.00043835,120]
[330488523,1719497123699,-500.0,0.00043835,120]
[330488524,1719497123740,-500.0,0.00043835,120]
[330488525,1719497123782,-500.0,0.00043835,120]
[330488526,1719497123822,-500.0,0.00043835,120]
[330488527,1719497123864,-500.0,0.00043835,120]
[330488528,1719497123906,-1504.44,0.00043835,120]
[330488529,1719497123948,-862.9,0.00043835,120]
[330488530,1719497124230,-1681.69,0.00043835,120]
[330488531,1719497124274,-930.25,0.00043835,120]
[330488532,1719497124318,-500.0,0.00043835,120]
[330488533,1719497124359,-1083.35,0.00043835,120]
[330488534,1719497124401,-849.63,0.00043835,120]
[330488535,1719497124441,-913.67,0.00043835,120]
[330488536,1719497124482,-715.07,0.00043835,120]
[330488537,1719497124522,-1339.35,0.00043835,120]
[330488538,1719497124562,-1620.7,0.00043835,120]
[330488539,1719497124603,-500.0,0.00043835,120]
[330488540,1719497124642,-584.67,0.00043835,120]
[330488541,1719497124685,-1781.42,0.00043835,120]
[330488542,1719497124723,-1729.39,0.00043835,120]
[330488543,1719497124767,-842.52,0.00043835,120]
[330488544,1719497124808,-500.0,0.00043835,120]
[330488545,1719497124850,-641.74,0.00043835,120]
[330488546,1719497124892,-839.86,0.00043835,120]
[330488547,1719497124938,-1424.16,0.00043835,120]
[330488548,1719497124980,-1743.97,0.00043835,120]
[330488549,1719497125023,-509.75,0.00043835,120]
[330488550,1719497125064,-500.0,0.00043835,120]
[330488551,1719497125103,-500.0,0.00043835,120]
[330488552,1719497125144,-614.25,0.00043835,120]
[330488553,1719497125188,-500.0,0.00043835,120]
[330488554,1719497125227,-750.5,0.00043835,120]
[330488555,1719497125268,-500.0,0.00043835,120]
[330488556,1719497125307,-1191.55,0.00043835,120]
[330488557,1719497125345,-636.18,0.00043835,120]
[330488558,1719497125385,-1921.75,0.00043835,120]
[330488559,1719497125429,-707.69,0.00043835,120]
[330488560,1719497125470,-500.0,0.00043835,120]
[330488561,1719497125510,-603.39,0.00043835,120]
[330488562,1719497125550,-589.7,0.00043835,120]
[330488563,1719497125592,-2311.61,0.00043835,120]
[330488564,1719497125631,-500.0,0.00043835,120]
[330488565,1719497125670,-500.0,0.00043835,120]
[330488566,1719497125712,-500.0,0.00043835,120]
[330488567,1719497125755,-2376.35,0.00043835,120]
[330488568,1719497125796,-814.33,0.00043835,120]
[330488569,1719497125837,-1932.47,0.00043835,120]
[330488570,1719497125879,-500.0,0.00043835,120]
[330488571,1719497125919,-1234.42,0.00043835,120]
[330488572,1719497125963,-723.66,0.00043835,120]
[330488573,1719497126005,-500.0,0.00043835,120]
[330488574,1719497126046,-1538.05,0.00043835,120]
[330488575,1719497126087,-500.0,0.00043835,120]
[330488576,1719497126127,-500.0,0.00043835,120]
[330488577,1719497126167,-859.35,0.00043835,120]
[330488578,1719497126207,-581.3,0.00043835,120]
[330488579,1719497126248,-2834.61,0.00043835,120]
[330488580,1719497126289,-500.0,0.00043835,120]
[330488581,1719497126327,-500.0,0.00043835,120]
[330488582,1719497126364,-555.14,0.00043835,120]
[330488583,1719497126403,-869.52,0.00043835,120]
[330488584,1719497126442,-705.33,0.00043835,120]
[330488585,1719497126480,-500.0,0.00043835,120]
[330488586,1719497126521,-1510.64,0.00043835,120]
[330488587,1719497126562,-910.08,0.00043835,120]
[330488588,1719497126602,-500.0,0.00043835,120]
[330488589,1719497126644,-814.39,0.00043835,120]
[330488590,1719497126689,-1051.69,0.00043835,120]
[330488591,1719497126729,-1494.23,0.00043835,120]
[330488592,1719497126771,-500.0,0.00043835,120]
[330488593,1719497126815,-500.0,0.00043835,120]
[330488594,1719497126857,-634.82,0.00043835,120]
[330488595,1719497126897,-3122.47,0.00043835,120]
[330488596,1719497126943,-513.08486936,0.00043835,120]
[330488597,1719497126983,-500.0,0.00043835,120]
[330488598,1719497127037,-500.0,0.00043835,120]
[330488599,1719497127080,-500.0,0.00043835,120]
[330488600,1719497127122,-578.71,0.00043835,120]
[330488601,1719497127164,-500.0,0.00043835,120]
[330488602,1719497127207,-8433.88,0.00043835,120]
[330488603,1719497127248,-774.58,0.00043835,120]
[330488604,1719497127290,-923.3,0.00043835,120]
[330488605,1719497127330,-500.0,0.00043835,120]
[330488606,1719497127370,-501.71,0.00043835,120]
[330488607,1719497127411,-500.0,0.00043835,120]
[330488608,1719497127452,-532.82,0.00043835,120]
[330488609,1719497127492,-500.0,0.00043835,120]
[330488610,1719497127533,-1305.0,0.00043835,120]
[330488611,1719497127576,-2465.78,0.00043835,120]
[330488612,1719497127619,-2414.92,0.00043835,120]
[330488613,1719497127660,-193.62213632,0.00043835,120]
[330488614,1719497127707,-1240.09,0.00043835,120]
[330488615,1719497127755,-500.0,0.00043835,120]
[330488616,1719497127797,-1159.09,0.00043835,120]
[330488617,1719497127840,-500.0,0.00043835,120]
[330488618,1719497127881,-2617.64,0.00043835,120]
[330488619,1719497127922,-1492.2,0.00043835,120]
[330488620,1719497127973,-724.33,0.00043835,120]
[330488621,1719497128016,-1924.12,0.00043835,120]
[330488622,1719497128059,-527.36,0.00043835,120]
[330488623,1719497128100,-1572.43,0.00043835,120]
[330488624,1719497128141,-500.0,0.00043835,120]
[330488625,1719497128187,-1434.09,0.00043835,120]
[330488626,1719497128229,-500.0,0.00043835,120]
[330488627,1719497128271,-1257.13,0.00043835,120]
[330488628,1719497128311,-500.0,0.00043835,120]
[330488629,1719497128353,-1431.43,0.00043835,120]
[330488630,1719497128394,-582.66,0.00043835,120]
[330488631,1719497128439,-579.13,0.00043835,120]
[330488632,1719497128484,-824.41,0.00043835,120]
[330488633,1719497128530,-3119.63,0.00043835,120]
[330488634,1719497128974,-1183.11,0.00043835,120]
[330488635,1719497129018,-1131.1,0.00043835,120]
[330488636,1719497129057,-686.28,0.00043835,120]
[330488637,1719497129096,-1725.11,0.00043835,120]
[330488638,1719497129136,-2007.3,0.00043835,120]
[330488639,1719497129176,-500.0,0.00043835,120]
[330488640,1719497129220,-614.57,0.00043835,120]
[330488641,1719497129262,-1666.99,0.00043835,120]
[330488642,1719497129302,-500.0,0.00043835,120]
[330488643,1719497129342,-4896.34,0.00043835,120]
[330488644,1719497129383,-1234.76,0.00043835,120]
[330488645,1719497129424,-688.7,0.00043835,120]
[330488646,1719497129471,-500.0,0.00043835,120]
[330488647,1719497129511,-1439.48,0.00043835,120]
[330488648,1719497129551,-3040.27,0.00043835,120]
[330488649,1719497129591,-1104.17,0.00043835,120]
[330488650,1719497129631,-1595.23,0.00043835,120]
[330488651,1719497129672,-500.0,0.00043835,120]
[330488652,1719497129713,-500.0,0.00043835,120]
[330488653,1719497129755,-1117.37,0.00043835,120]
[330488654,1719497129795,-1355.36,0.00043835,120]
[330488655,1719497129837,-2031.08,0.00043835,120]
[330488656,1719497129876,-905.26,0.00043835,120]
[330488657,1719497129914,-1054.64,0.00043835,120]
[330488658,1719497129955,-2621.64,0.00043835,120]
[330488659,1719497129993,-518.39,0.00043835,120]
[330488660,1719497130035,-500.0,0.00043835,120]
[330488661,1719497130073,-1009.42,0.00043835,120]
[330488662,1719497130112,-500.0,0.00043835,120]
[330488663,1719497130151,-2244.43,0.00043835,120]
[330488664,1719497130193,-1179.1,0.00043835,120]
[330488665,1719497130232,-500.0,0.00043835,120]
[330488666,1719497130270,-500.0,0.00043835,120]
[330488667,1719497130308,-1464.75,0.00043835,120]
[330488668,1719497130344,-2658.66,0.00043835,120]
[330488669,1719497130382,-500.0,0.00043835,120]
[330488670,1719497130420,-1245.76,0.00043835,120]
[330488671,1719497130457,-500.0,0.00043835,120]
[330488672,1719497130495,-575.88,0.00043835,120]
[330488673,1719497130533,-500.0,0.00043835,120]
[330488674,1719497130573,-505.51,0.00043835,120]
[330488675,1719497130613,-977.08,0.00043835,120]
[330488676,1719497130653,-2627.28,0.00043835,120]
[330488677,1719497130695,-500.0,0.00043835,120]
[330488678,1719497130735,-500.0,0.00043835,120]
[330488679,1719497130775,-500.0,0.00043835,120]
[330488680,1719497130814,-882.32,0.00043835,120]
[330488681,1719497130852,-500.0,0.00043835,120]
[330488682,1719497130890,-1106.49,0.00043835,120]
[330488683,1719497130927,-500.0,0.00043835,120]
[330488684,1719497130972,-3227.34,0.00043835,120]
[330488685,1719497131013,-500.0,0.00043835,120]
[330488686,1719497131054,-1394.59,0.00043835,120]
[330488687,1719497131094,-1454.07,0.00043835,120]
[330488688,1719497131134,-829.26,0.00043835,120]
[330488689,1719497131174,-759.29,0.00043835,120]
[330488690,1719497131214,-500.0,0.00043835,120]
[330488691,1719497131254,-500.0,0.00043835,120]
[330488692,1719497131291,-2000.0,0.00043835,120]
[330488693,1719497131332,-1502.06,0.00043835,120]
[330488694,1719497131372,-1167.85,0.00043835,120]
[330488695,1719497131413,-500.0,0.00043835,120]
[330488696,1719497131453,-2224.1,0.00043835,120]
[330488697,1719497131491,-816.12,0.00043835,120]
[330488698,1719497131529,-1515.51,0.00043835,120]
[330488699,1719497131569,-1160.97,0.00043835,120]
[330488700,1719497131609,-500.0,0.00043835,120]
[330488701,1719497131647,-2947.18,0.00043835,120]
[330488702,1719497131686,-2519.83,0.00043835,120]
[330488703,1719497131728,-500.0,0.00043835,120]
[330488704,1719497131769,-500.0,0.00043835,120]
[330488705,1719497131808,-500.0,0.00043835,120]
[330488706,1719497131847,-641.63084376,0.00043835,120]
[330488707,1719497131885,-500.0,0.00043835,120]
[330488708,1719497131924,-540.12,0.00043835,120]
[330488709,1719497131963,-1273.45,0.00043835,120]
[330488710,1719497132001,-953.31,0.00043835,120]
[330488711,1719497132041,-500.0,0.00043835,120]
[330488712,1719497132082,-765.5,0.00043835,120]
[330488713,1719497132122,-500.0,0.00043835,120]
[330488714,1719497132164,-1573.82,0.00043835,120]
[330488715,1719497132203,-500.0,0.00043835,120]
[330488716,1719497132242,-2064.18,0.00043835,120]
[330488717,1719497132281,-1824.26,0.00043835,120]
[330488718,1719497132321,-2496.03,0.00043835,120]
[330488719,1719497132361,-2744.32,0.00043835,120]
[330488720,1719497132399,-276.33214434,0.00043835,120]
[330488721,1719497132441,-500.0,0.00043835,120]
[330488722,1719497132480,-500.0,0.00043835,120]
[330488723,1719497132522,-637.61,0.00043835,120]